bitfinex-derivatives/quotes_SOLF0:USTF0_20240815
["timestamp","ask_amount","ask_price","bid_price","bid_amount"]
[1723748802919,3.6111,138.45,138.4,3.612]
[1723748803227,0.05015396,138.45,138.42,0.04892078]
[1723748804225,31.25015396,138.45,138.42,0.04892078]
[1723748804633,31.25015396,138.45,138.37,3.6127]
[1723748804820,31.2,138.45,138.35,10.78140728]
[1723748805021,1.2593,138.44,138.35,7.12]
[1723748805329,31.2,138.4,138.31,7.1]
[1723748805724,3.6128,138.38,138.34,3.6136]
[1723748805924,0.04950729,138.37,138.34,3.6347129]
[1723748806426,0.04950729,138.37,138.34,0.0211129]
[1723748807327,0.04950729,138.37,138.35,3.6134]
[1723748807726,0.04950729,138.37,138.34,0.0211129]
[1723748808524,3.66250729,138.37,138.34,0.0211129]
[1723748808719,0.04950729,138.37,138.34,0.0211129]
[1723748810532,0.04950729,138.37,138.34,3.61009223]
[1723748811229,0.04950729,138.37,138.36,3.6132]
[1723748811623,3.6113,138.44,138.38,3.6125]
[1723748812028,31.2,138.46,138.38,3.6125]
[1723748812624,0.05002933,138.43,138.41,0.05406212]
[1723748812847,31.25002933,138.43,138.41,0.05406212]
[1723748813020,3.6116,138.42,138.41,0.05406212]
[1723748813924,31.25002933,138.43,138.32,3.56271745]
[1723748814127,31.2,138.4,138.31,7.1]
[1723748814427,31.2,138.4,138.32,3.52519986]
[1723748814624,31.2,138.4,138.31,7.1]
[1723748814832,31.2,138.4,138.34,3.6135]
[1723748815028,1.295,138.42,138.31,10.64940197]
[1723748815236,0.04852084,138.37,138.31,10.64940197]
[1723748815440,0.04852084,138.37,138.34,3.6135]
[1723748816337,3.66142084,138.37,138.33,3.6137]
[1723748816739,0.04852084,138.37,138.33,3.6137]
[1723748817231,0.04852084,138.37,138.31,10.64940197]
[1723748817639,0.04852084,138.37,138.35,3.6134]
[1723748817838,25.98,138.5,138.36,25.98]
[1723748818056,3.6104,138.47,138.39,25.98]
[1723748818237,1.3741,138.51,138.41,25.98]
[1723748818533,3.6099,138.49,138.41,25.98]
[1723748818737,1.3741,138.51,138.43,25.98]
[1723748818936,1.3741,138.51,138.44,7.12]
[1723748819340,27.3084,138.52,138.44,10.7309]
[1723748819639,25.98,138.5,138.44,7.12]
[1723748819844,3.6105,138.47,138.44,7.12]
[1723748820038,1.3284,138.52,138.44,7.17278239]
[1723748820039,0.04866961,138.46,138.44,7.17278239]
[1723748820643,1.3284,138.52,138.44,7.17278239]
[1723748821035,0.04918383,138.46,138.44,7.17278239]
[1723748821236,0.04918383,138.46,138.44,0.05278239]
[1723748821544,0.0517838,138.46,138.44,0.05278239]
[1723748821742,3.6623838,138.46,138.44,0.05278239]
[1723748822135,0.0517838,138.46,138.44,0.05278239]
[1723748822444,3.6108,138.45,138.44,0.05278239]
[1723748822740,27.95800115,138.45,138.36,7.1]
[1723748822952,31.18,138.43,138.36,7.1]
[1723748823450,31.18,138.43,138.34,4.9563]
[1723748823451,3.6127,138.38,138.34,4.9563]
[1723748823643,3.6127,138.38,138.33,7.1]
[1723748823644,31.18,138.43,138.33,7.1]
[1723748823848,0.04976799,138.37,138.33,7.1]
[1723748824052,3.6137,138.34,138.3,1.3428]
[1723748824255,3.6137,138.34,138.29,3.61678968]
[1723748824436,31.18,138.39,138.31,3.6143]
[1723748824752,0.05321538,138.33,138.27,68.5444]
[1723748825250,27.97383308,138.36,138.28,3.5311916]
[1723748825440,0.05181414,138.31,138.27,68.5444]
[1723748825645,0.05181414,138.31,138.28,3.6151]
[1723748825844,0.05181414,138.31,138.28,3.69985954]
[1723748826052,31.18,138.39,138.27,68.5444]
[1723748826354,3.6135,138.35,138.27,68.5444]
[1723748826643,3.6135,138.35,138.27,72.13301816]
[1723748826849,0.05020937,138.31,138.29,3.6148]
[1723748827047,31.18,138.4,138.29,31.18]
[1723748827242,27.97014989,138.39,138.36,3.6132]
[1723748827446,9.7557,138.44,138.32,1.2914]
[1723748827642,64.41085315,138.43,138.33,7.12]
[1723748827846,33.23085315,138.42,138.33,10.7338]
[1723748828046,3.6125,138.39,138.33,7.12]
[1723748828242,27.96760457,138.38,138.36,0.05362426]
[1723748828448,0.04796505,138.39,138.36,0.05362426]
[1723748828647,27.96826487,138.38,138.36,0.05362426]
[1723748828845,0.04796505,138.39,138.36,0.05362426]
[1723748829050,3.6129,138.37,138.36,0.05362426]
[1723748829240,31.58350736,138.37,138.36,0.05362426]
[1723748829749,3.6138,138.34,138.29,3.6149]
[1723748829954,31.18,138.36,138.27,4.97301816]
[1723748830247,3.6144,138.32,138.27,4.97301816]
[1723748830456,33.789,138.36,138.27,4.97301816]
[1723748831047,3.66896938,138.33,138.28,3.6151]
[1723748831857,3.6142,138.32,138.27,8.58841816]
[1723748832257,0.05496938,138.33,138.27,4.97301816]
[1723748832654,0.05496938,138.33,138.29,3.6149]
[1723748834148,31.23496938,138.33,138.21,1.3243]
[1723748834358,31.18,138.31,138.22,1.3817]
[1723748834556,0.04946611,138.28,138.22,1.3817]
[1723748835065,0.04946611,138.28,138.21,8.4178]
[1723748835653,0.04946611,138.28,138.21,9.7995]
[1723748836352,0.04946611,138.28,138.22,3.56802992]
[1723748836561,0.04946611,138.28,138.23,3.60091332]
[1723748836859,0.04946611,138.28,138.21,9.7995]
[1723748837050,0.04946611,138.28,138.21,13.42195852]
[1723748838051,0.04946611,138.28,138.21,9.7995]
[1723748838254,3.6158,138.26,138.21,13.4164]
[1723748838650,0.04882265,138.25,138.21,13.4164]
[1723748839455,3.66492265,138.25,138.21,7.12]
[1723748839856,0.04882265,138.25,138.21,7.12]
[1723748840164,3.6164,138.24,138.19,3.6174]
[1723748840356,0.04882265,138.25,138.18,2.6879]
[1723748840860,0.04882265,138.25,138.18,6.25644473]
[1723748841553,3.6168,138.23,138.18,9.87424473]
[1723748841861,3.6168,138.23,138.18,2.6879]
[1723748842266,0.04687485,138.22,138.18,2.6879]
[1723748842564,0.04687485,138.22,138.19,7.14735446]
[1723748842760,0.04687485,138.22,138.19,3.6175]
[1723748843253,0.04687485,138.22,138.2,3.6172]
[1723748843856,0.04687485,138.22,138.19,3.6176]
[1723748844061,0.04687485,138.22,138.18,1.3463]
[1723748844263,0.04687485,138.22,138.19,3.52628056]
[1723748844564,0.04687485,138.22,138.19,3.6175]
[1723748845362,0.04687485,138.22,138.18,5.05269212]
[1723748845666,31.18,138.31,138.19,31.18]
[1723748845863,31.18,138.31,138.21,31.18]
[1723748845864,3.6145,138.31,138.21,31.18]
[1723748846053,228.0,138.34,138.23,31.18]
[1723748846259,31.18,138.36,138.24,7.1]
[1723748846762,27.98419546,138.35,138.28,31.18]
[1723748846965,228.0,138.4,138.31,31.18]
[1723748847162,3.6124,138.39,138.32,7.1]
[1723748847362,0.05365525,138.33,138.32,7.1]
[1723748847758,31.18,138.41,138.32,7.1]
[1723748847966,31.18,138.41,138.34,0.04917237]
[1723748848357,3.6127,138.38,138.34,0.04917237]
[1723748848864,0.04598453,138.39,138.34,0.04917237]
[1723748849261,0.04598453,138.39,138.36,3.613]
[1723748850166,0.04598453,138.39,138.36,3.66372092]
[1723748850554,0.04598453,138.39,138.36,0.05072092]
[1723748851056,3.6129,138.37,138.36,0.05072092]
[1723748851262,34.7929,138.37,138.36,0.05072092]
[1723748851669,3.6129,138.37,138.36,0.05072092]
[1723748851967,0.04598453,138.39,138.36,0.05072092]
[1723748852472,0.04598453,138.39,138.38,3.6127]
[1723748852682,0.04598453,138.39,138.38,7.30715025]
[1723748852861,0.04598453,138.39,138.38,3.6127]
[1723748853161,1.3048,138.45,138.4,3.612]
[1723748853352,1.3048,138.45,138.36,32.52442092]
[1723748853353,1.3048,138.45,138.38,3.58149414]
[1723748853558,1.3048,138.45,138.36,32.4737]
[1723748853863,1.3048,138.45,138.4,3.612]
[1723748854068,4.9157,138.45,138.41,3.6714288]
[1723748854273,0.04687828,138.44,138.41,0.0466426]
[1723748855369,228.0,138.51,138.42,7.1]
[1723748855370,229.3418,138.51,138.42,7.1]
[1723748855565,1.3418,138.51,138.42,7.1]
[1723748855765,1.3418,138.51,138.42,8.423]
[1723748855971,3.6097,138.5,138.43,3.6111]
[1723748856490,3.6097,138.5,138.4,3.6627604]
[1723748856491,31.18,138.52,138.44,7.1]
[1723748856769,31.18,138.5,138.4,7.1]
[1723748856965,31.18,138.5,138.41,3.6119]
[1723748857166,31.18,138.5,138.42,3.63609844]
[1723748857370,3.6106,138.46,138.42,3.63609844]
[1723748857566,3.6106,138.46,138.45,0.0503247]
[1723748858669,3.6117,138.42,138.38,10.70324974]
[1723748858977,31.18,138.44,138.38,7.1]
[1723748859364,3.6117,138.42,138.38,7.1]
[1723748859566,31.18,138.44,138.38,7.1]
[1723748859774,3.6108,138.45,138.38,7.1]
[1723748859981,31.18,138.49,138.38,7.1]
[1723748860182,31.18,138.49,138.38,38.28]
[1723748860477,0.05192532,138.41,138.39,3.65985857]
[1723748860678,0.05192532,138.41,138.39,0.04765857]
[1723748860978,0.05192532,138.41,138.38,38.28]
[1723748860979,31.18,138.47,138.38,7.1]
[1723748861476,0.05246419,138.41,138.39,0.05465821]
[1723748861879,31.18,138.42,138.39,0.05465821]
[1723748862172,3.6121,138.4,138.39,0.05465821]
[1723748862479,0.04737044,138.41,138.36,7.1]
[1723748862681,3.6126,138.39,138.38,0.05047801]
[1723748864177,0.04737044,138.41,138.38,0.05047801]
[1723748864576,3.65927044,138.41,138.38,0.05047801]
[1723748865380,3.6122,138.4,138.38,0.05047801]
[1723748865780,3.6124,138.39,138.38,0.05047801]
[1723748866177,66.05128586,138.4,138.32,7.08]
[1723748866379,3.6136,138.35,138.29,3.6148]
[1723748866578,31.18,138.37,138.29,3.6148]
[1723748867082,2.5605,138.39,138.3,3.6147]
[1723748867276,2.5605,138.39,138.29,3.6342246]
[1723748867473,0.05311819,138.34,138.32,0.04781658]
[1723748868081,31.18,138.38,138.32,0.04781658]
[1723748868384,2.5605,138.39,138.32,0.04781658]
[1723748868583,0.04960511,138.34,138.32,0.04781658]
[1723748868987,3.6132,138.36,138.32,0.04781658]
[1723748869188,31.18,138.4,138.32,0.04781658]
[1723748869381,0.05173058,138.34,138.33,3.6138]
[1723748869588,31.18,138.42,138.32,1.32711658]
[1723748869785,31.18,138.42,138.32,1.2793]
[1723748870085,1.3325,138.44,138.32,1.2793]
[1723748870287,1.3325,138.44,138.33,31.18]
[1723748870490,1.3325,138.44,138.35,31.18]
[1723748870681,1.3325,138.44,138.34,7.08]
[1723748870979,3.6124,138.4,138.34,10.6935]
[1723748871179,3.66335469,138.4,138.37,0.04977883]
[1723748871587,3.6127,138.38,138.37,0.04977883]
[1723748871780,0.05095469,138.4,138.37,0.04977883]
[1723748871987,3.6127,138.38,138.37,0.04977883]
[1723748874285,0.05095469,138.4,138.31,2.6411]
[1723748874286,3.6138,138.34,138.31,1.3626]
[1723748874486,3.6138,138.34,138.3,3.66961703]
[1723748874992,31.18,138.4,138.3,3.66961703]
[1723748875489,31.18,138.4,138.29,7.08]
[1723748875792,0.0462452,138.36,138.34,0.0483783]
[1723748876484,3.6123,138.4,138.35,3.6134]
[1723748876685,32.5125,138.44,138.34,0.0483783]
[1723748876686,32.5125,138.44,138.36,3.55388906]
[1723748876884,3.6117,138.42,138.37,3.65179533]
[1723748877083,0.04935911,138.39,138.36,7.08]
[1723748877388,3.6113,138.44,138.39,3.6123]
[1723748877689,259.18,138.48,138.37,4.91909128]
[1723748877884,31.18,138.46,138.37,3.58279128]
[1723748878087,59.14159901,138.47,138.32,1.3363]
[1723748878088,31.18,138.43,138.32,1.3363]
[1723748878290,0.04686169,138.39,138.36,0.05405963]
[1723748878796,3.65936169,138.39,138.36,0.05405963]
[1723748878987,0.04686169,138.39,138.36,0.05405963]
[1723748879492,3.6129,138.37,138.36,0.05405963]
[1723748879988,3.6129,138.37,138.32,12.0304]
[1723748879989,3.6129,138.37,138.29,3.69100238]
[1723748880190,31.18,138.36,138.29,3.6149]
[1723748880490,31.18,138.36,138.28,7.08]
[1723748880692,31.18,138.36,138.28,10.6953]
[1723748880986,31.18,138.36,138.28,7.08]
[1723748881288,0.05180019,138.33,138.31,0.04506781]
[1723748881487,31.18,138.32,138.24,7.08]
[1723748882192,3.6155,138.28,138.24,7.08]
[1723748882690,3.6154,138.28,138.24,7.08]
[1723748883193,0.05252082,138.27,138.24,7.08]
[1723748883585,3.66812082,138.27,138.24,7.08]
[1723748883786,0.05252082,138.27,138.24,7.08]
[1723748884187,0.05252082,138.27,138.19,35.1218]
[1723748884380,0.05252082,138.27,138.2,7.08]
[1723748885103,31.23252082,138.27,138.2,7.08]
[1723748885290,31.23252082,138.27,138.14,33.8991]
[1723748885602,3.617,138.22,138.17,3.6179]
[1723748885785,3.617,138.22,138.16,7.08]
[1723748886180,3.6174,138.2,138.16,7.08]
[1723748886385,0.04947603,138.22,138.16,7.08]
[1723748887385,3.6171,138.21,138.16,10.6983]
[1723748888496,0.04947603,138.22,138.16,7.08]
[1723748888692,0.04947603,138.22,138.16,38.26]
[1723748889194,3.66647603,138.22,138.17,3.6181]
[1723748889595,0.04947603,138.22,138.16,7.08]
[1723748889991,3.6171,138.21,138.16,10.6982]
[1723748890396,0.04947603,138.22,138.16,7.08]
[1723748891499,3.6176,138.2,138.16,7.08]
[1723748891797,0.04947603,138.22,138.16,7.08]
[1723748891994,0.04947603,138.22,138.14,3.6975387]
[1723748892199,0.04947603,138.22,138.13,3.6192]
[1723748892596,3.6178,138.19,138.14,7.31796468]
[1723748892997,3.66729357,138.19,138.14,7.31796468]
[1723748893217,3.6179,138.18,138.14,7.31796468]
[1723748893496,0.04949357,138.19,138.14,7.31796468]
[1723748894197,0.04949357,138.19,138.15,3.6186]
[1723748894396,0.04949357,138.19,138.14,3.69906468]
[1723748894598,0.04949357,138.19,138.12,8.3793]
[1723748894901,0.04949357,138.19,138.14,3.6188]
[1723748895501,0.04949357,138.19,138.12,12.0671521]
[1723748895701,0.04949357,138.19,138.13,2.5912]
[1723748896506,1.3209,138.26,138.16,31.18]
[1723748896703,1.3209,138.26,138.19,3.6174]
[1723748896998,1.2542,138.28,138.19,10.76196968]
[1723748897202,1.2542,138.28,138.19,7.08]
[1723748897400,1.2542,138.28,138.19,10.6577937]
[1723748897601,3.6158,138.27,138.21,3.6169]
[1723748897804,0.04819063,138.25,138.22,0.04949357]
[1723748900603,2.6625,138.33,138.22,0.04949357]
[1723748901009,3.6148,138.3,138.25,3.6159]
[1723748901206,2.6625,138.33,138.25,10.6959]
[1723748901403,2.6625,138.33,138.25,7.08]
[1723748901603,31.18,138.37,138.25,7.08]
[1723748901803,0.04930588,138.3,138.28,0.05101216]
[1723748902003,3.6132,138.36,138.31,3.6143]
[1723748902202,1.3474,138.38,138.31,7.08]
[1723748902409,31.18,138.39,138.31,10.7731373]
[1723748903312,31.18,138.39,138.33,3.6138]
[1723748903611,0.05473968,138.36,138.34,0.04691411]
[1723748903809,0.05473968,138.36,138.34,3.66061411]
[1723748904010,0.05473968,138.36,138.34,0.04691411]
[1723748905006,0.05473968,138.36,138.34,3.66041411]
[1723748905208,31.18,138.41,138.34,0.04691411]
[1723748905714,3.6123,138.4,138.34,3.66041411]
[1723748906103,31.18,138.41,138.34,3.66041411]
[1723748906512,0.05155587,138.39,138.34,3.66041411]
[1723748906816,0.05155587,138.39,138.34,0.04691411]
[1723748908120,0.05155587,138.39,138.35,3.6133]
[1723748909226,0.05155587,138.39,138.34,0.04691411]
[1723748909722,0.05155587,138.39,138.34,3.66061411]
[1723748910122,0.05155587,138.39,138.35,3.6133]
[1723748910519,0.05155587,138.39,138.34,0.04691411]
[1723748910715,0.05155587,138.39,138.34,3.66041411]
[1723748911314,0.05155587,138.39,138.38,26.02]
[1723748911717,0.05155587,138.39,138.38,36.7127]
[1723748911918,3.9213,138.46,138.38,36.67019832]
[1723748912432,2.6112,138.46,138.4,3.612]
[1723748912727,1.2922,138.46,138.4,3.612]
[1723748912913,3.611,138.45,138.4,3.612]
[1723748913118,0.04637208,138.44,138.42,0.05437362]
[1723748915117,0.04637208,138.44,138.32,1.3577]
[1723748915118,26.02,138.43,138.32,1.3577]
[1723748915318,26.02,138.37,138.29,1.3447]
[1723748915632,26.02,138.34,138.23,1.3159]
[1723748915932,31.22,138.31,138.23,1.3159]
[1723748916220,31.22,138.31,138.21,7.08]
[1723748916221,31.22,138.26,138.21,7.08]
[1723748916426,31.22,138.26,138.17,35.98]
[1723748916622,3.6166,138.24,138.18,3.6177]
[1723748916829,3.6166,138.24,138.17,7.08]
[1723748917020,3.6166,138.24,138.18,3.57494041]
[1723748917322,31.22,138.26,138.17,7.08]
[1723748917721,31.22,138.26,138.18,3.53723641]
[1723748917916,31.22,138.26,138.2,0.0468963]
[1723748918725,0.04784152,138.23,138.2,0.0468963]
[1723748918926,3.66464152,138.23,138.2,0.0468963]
[1723748919521,0.04784152,138.23,138.2,0.0468963]
[1723748920520,0.04784152,138.23,138.21,3.617]
[1723748920723,0.04784152,138.23,138.2,0.0468963]
[1723748921718,3.6171,138.21,138.2,0.0468963]
[1723748922629,3.617,138.22,138.2,0.0468963]
[1723748923023,0.04784152,138.23,138.2,0.0468963]
[1723748924731,0.04784152,138.23,138.21,3.6169]
[1723748924932,0.04784152,138.23,138.2,0.0468963]
[1723748926425,31.26784152,138.23,138.2,0.0468963]
[1723748926617,0.04784152,138.23,138.2,0.0468963]
[1723748927355,3.66454152,138.23,138.2,0.0468963]
[1723748927633,0.04784152,138.23,138.2,0.0468963]
[1723748929536,3.66454152,138.23,138.2,0.0468963]
[1723748929743,0.04784152,138.23,138.2,0.0468963]
[1723748930030,0.04784152,138.23,138.21,3.6169]
[1723748930232,31.26784152,138.23,138.2,0.0468963]
[1723748930431,31.22,138.21,138.2,0.0468963]
[1723748930939,34.8371,138.21,138.2,0.0468963]
[1723748931238,34.8371,138.21,138.13,7.06]
[1723748931239,31.22,138.21,138.13,7.06]
[1723748931536,3.6179,138.18,138.11,8.3828]
[1723748932136,31.22,138.21,138.11,8.3828]
[1723748932440,0.05473786,138.16,138.13,0.05557924]
[1723748932629,3.6188,138.15,138.13,0.05557924]
[1723748933135,31.22,138.17,138.08,7.06]
[1723748933325,31.22,138.17,138.08,10.59361998]
[1723748933530,0.04931811,138.15,138.13,0.0553688]
[1723748934039,3.6189,138.14,138.13,0.0553688]
[1723748934231,0.04931811,138.15,138.13,0.0553688]
[1723748935741,3.6189,138.14,138.13,0.0553688]
[1723748936330,3.66801811,138.15,138.13,0.0553688]
[1723748936535,0.04931811,138.15,138.13,0.0553688]
[1723748937742,0.04931811,138.15,138.13,3.6744688]
[1723748938635,0.04931811,138.15,138.13,0.0553688]
[1723748941548,3.6189,138.14,138.13,0.0553688]
[1723748941743,0.04931811,138.15,138.13,0.0553688]
[1723748942748,3.6189,138.14,138.13,0.0553688]
[1723748943751,3.6189,138.14,138.03,72.36509043]
[1723748943752,26.07,138.14,138.03,72.36509043]
[1723748943941,26.07,138.14,138.05,3.62060192]
[1723748944743,2.6551,138.15,138.05,3.62060192]
[1723748944744,0.04679873,138.11,138.09,0.04875025]
[1723748946054,0.04679873,138.11,138.02,26.07]
[1723748946055,26.07,138.1,138.0,2.6013]
[1723748946238,26.07,138.06,138.01,3.6223]
[1723748946442,29.6912,138.06,138.01,3.6223]
[1723748946646,29.6912,138.06,138.0,6.13649842]
[1723748946946,29.6911,138.06,138.0,6.13649842]
[1723748947148,29.6911,138.06,137.99,7.08]
[1723748947149,26.07,138.06,137.99,7.08]
[1723748947342,26.07,138.06,138.0,3.6224]
[1723748947543,26.12279267,138.04,138.02,0.04789666]
[1723748948262,3.6218,138.03,138.02,0.04789666]
[1723748948751,3.6225,138.01,137.96,3.619441]
[1723748948941,3.6225,138.01,137.96,7.242941]
[1723748949341,3.6225,138.01,137.97,3.6233]
[1723748949542,26.07,138.05,137.96,3.619441]
[1723748949740,2.6564,138.06,137.95,7.08]
[1723748949955,0.05340139,138.02,137.98,3.6229]
[1723748950150,26.12340139,138.02,137.95,7.08]
[1723748950344,26.07,138.0,137.95,7.08]
[1723748950551,26.12340139,138.02,137.95,10.68698804]
[1723748950854,26.07,138.04,137.95,10.68698804]
[1723748951057,0.04778409,138.0,137.98,3.6229]
[1723748951254,26.07,137.99,137.95,7.08]
[1723748951454,26.07,137.99,137.92,2.6435]
[1723748951760,0.04778409,138.0,137.92,2.6435]
[1723748951952,0.04778409,138.0,137.94,3.6239]
[1723748952157,26.07,137.96,137.79,28.96]
[1723748952374,26.07,137.94,137.86,1.3503]
[1723748952557,26.07,137.92,137.86,4.89498618]
[1723748952773,26.07,137.92,137.86,1.3503]
[1723748952953,26.07,137.9,137.86,1.3503]
[1723748953157,26.07,137.92,137.84,3.66090763]
[1723748953368,8.4678,137.97,137.83,26.07]
[1723748953659,26.07,137.9,137.83,3.6271]
[1723748953959,26.07,137.9,137.81,11.97305538]
[1723748954255,0.05090648,137.89,137.82,26.07]
[1723748954461,0.05090648,137.89,137.81,11.97305538]
[1723748954658,0.05090648,137.89,137.83,3.6271]
[1723748954852,0.05090648,137.89,137.81,11.97305538]
[1723748954853,26.07,137.88,137.81,11.97305538]
[1723748955356,26.07,137.88,137.82,3.6271]
[1723748955763,26.07,137.85,137.68,28.96]
[1723748955961,26.07,137.82,137.77,3.6286]
[1723748956169,26.07,137.85,137.75,3.61451656]
[1723748956361,26.07,137.85,137.76,1.2759]
[1723748956660,29.72568195,137.85,137.76,1.2759]
[1723748957164,29.72568195,137.85,137.76,0.02]
[1723748957365,26.07,137.78,137.76,0.02]
[1723748957573,26.07,137.78,137.71,3.63]
[1723748957752,3.6277,137.8,137.71,3.63]
[1723748957753,26.07,137.76,137.71,3.63]
[1723748957955,31.37,137.77,137.66,7.06]
[1723748958163,1.2892,137.81,137.7,31.37]
[1723748958461,1.2892,137.81,137.68,31.37]
[1723748958864,0.05016011,137.73,137.7,31.37]
[1723748959070,1.0,137.84,137.72,31.37]
[1723748959071,32.37,137.84,137.72,31.37]
[1723748959269,1.0,137.84,137.73,8.328]
[1723748959568,33.9526,137.86,137.75,31.37]
[1723748959778,31.37,137.88,137.77,31.37]
[1723748959977,7.57698093,138.0,137.85,31.37]
[1723748960174,7.57698093,138.0,137.88,31.37]
[1723748960175,36.23884116,138.0,137.88,31.37]
[1723748960373,31.37,137.95,137.85,3.56330605]
[1723748960574,31.37,137.95,137.86,7.06]
[1723748960769,32.6817,138.0,137.88,31.37]
[1723748960974,1.3117,138.0,137.9,31.37]
[1723748961168,1.3117,138.0,137.91,1.3074]
[1723748961372,1.3117,138.0,137.92,7.06]
[1723748961877,1.3117,138.0,137.93,7.06]
[1723748962080,31.37,138.04,137.93,10.63309735]
[1723748962376,1.3007,138.05,137.93,10.63309735]
[1723748962377,34.9919,138.02,137.95,3.6235]
[1723748962569,0.05176111,137.97,137.94,0.05016011]
[1723748962970,0.05176111,137.97,137.95,3.6237]
[1723748963170,0.05176111,137.97,137.94,0.05016011]
[1723748963376,0.05176111,137.97,137.94,35.03366887]
[1723748963574,3.62039026,138.19,137.96,31.37]
[1723748963575,31.37,138.11,137.96,31.37]
[1723748963802,31.37,138.13,137.99,31.37]
[1723748963980,31.37,138.13,138.0,7.06]
[1723748964380,2.6841,138.14,138.02,31.37]
[1723748964583,7.06,138.18,138.02,31.37]
[1723748964584,38.43,138.18,138.04,31.37]
[1723748964779,31.37,138.18,138.04,31.37]
[1723748964980,31.37,138.18,138.08,3.6202]
[1723748965283,31.37,138.15,138.08,7.06]
[1723748965575,0.05509209,138.09,138.08,10.6803]
[1723748965776,32.6544,138.2,138.08,7.06]
[1723748965980,1.2844,138.2,138.1,31.37]
[1723748966282,1.2844,138.2,138.11,3.67761531]
[1723748966485,31.37,138.22,138.12,31.37]
[1723748966676,7.06,138.26,138.12,31.37]
[1723748966677,31.37,138.24,138.12,31.37]
[1723748966988,31.37,138.24,138.12,34.95988833]
[1723748967676,31.37,138.24,138.17,0.05560758]
[1723748967677,0.04819989,138.19,138.17,0.05560758]
[1723748967872,0.04819989,138.19,138.18,3.6177]
[1723748968680,36.37030907,138.27,138.19,3.6174]
[1723748968982,31.37,138.2,138.17,0.05560758]
[1723748969580,31.41561034,138.2,138.11,10.76529439]
[1723748969880,0.04561034,138.2,138.12,31.37]
[1723748970075,0.04561034,138.2,138.14,31.37]
[1723748970479,0.04561034,138.2,138.18,3.6174]
[1723748970679,0.04561034,138.2,138.17,0.04951438]
[1723748970880,36.2697,138.28,138.21,3.6167]
[1723748971095,32.6544,138.28,138.2,3.60275253]
[1723748971293,32.6544,138.28,138.17,7.10951438]
[1723748971590,0.05127805,138.2,138.19,3.6174]
[1723748971886,31.37,138.3,138.19,3.70258784]
[1723748972087,31.37,138.3,138.18,31.37]
[1723748972282,3.6146,138.3,138.18,35.10927182]
[1723748972500,1.3572,138.34,138.23,31.37]
[1723748972793,31.37,138.36,138.25,31.37]
[1723748972982,31.37,138.36,138.28,3.6149]
[1723748973182,31.37,138.29,138.23,7.06]
[1723748973387,34.9846,138.3,138.23,10.6763]
[1723748973577,31.42448103,138.3,138.23,7.06]
[1723748973985,35.03908103,138.3,138.23,10.6761]
[1723748974186,31.42448103,138.3,138.23,10.60578383]
[1723748974388,0.05448103,138.3,138.23,10.60578383]
[1723748974582,0.05448103,138.3,138.24,3.6159]
[1723748974896,0.05448103,138.3,138.23,10.60578383]
[1723748975284,0.05448103,138.3,138.25,3.66677191]
[1723748975485,0.05448103,138.3,138.25,0.05097191]
[1723748975989,31.42448103,138.3,138.25,0.05097191]
[1723748976578,35.03948103,138.3,138.25,0.05097191]
[1723748976783,0.05448103,138.3,138.25,0.05097191]
[1723748979686,0.05448103,138.3,138.26,3.6156]
[1723748979889,0.05448103,138.3,138.25,0.05097191]
[1723748980389,0.05448103,138.3,138.25,31.42097191]
[1723748980787,0.05448103,138.3,138.29,3.615]
[1723748980993,0.05448103,138.3,138.29,10.675]
[1723748981193,0.05448103,138.3,138.29,7.06]
[1723748983189,0.05448103,138.3,138.29,10.675]
[1723748983888,0.05448103,138.3,138.29,7.06]
[1723748984079,0.05448103,138.3,138.28,0.05391843]
[1723748986897,0.05448103,138.3,138.29,7.21948503]